fUSD/lending_fUSD_20250512
["ID","MTS","AMOUNT","RATE_DAILY","PERIOD"]
[360829319,1747054238047,-2181.66,0.00013176,2]
[360829321,1747054238056,-866.86,0.00013232,2]
[360829322,1747054238065,-1038.02,0.00013232,2]
[360829323,1747054238074,-197.21343363,0.00013232,2]
[360829324,1747054238085,-388.79040139,0.00013232,2]
[360829325,1747054238096,-7161.90616498,0.00013232,2]
[360829326,1747054238106,-999.99,0.00013232,2]
[360829327,1747054238115,-255.0,0.00013543,2]
[360829328,1747054238124,-207.4,0.00013597,2]
[360829329,1747054238135,-2298.3589,0.00013599,2]
[360829330,1747054238143,-430.49475491,0.00013599,2]
[360829331,1747054238152,-420.0,0.00013657,2]
[360829332,1747054238161,-420.0,0.00013657,2]
[360829333,1747054238170,-430.49475489,0.00013659,2]
[360829334,1747054238179,-4990.88033901,0.00013689,2]
[360829335,1747054238190,-98.68104099,0.00013689,2]
[360829336,1747054238199,-155.0,0.00013691,2]
[360829337,1747054238208,-668.65185757,0.00013691,2]
[360829338,1747054238217,-1680.0,0.00013691,2]
[360829339,1747054238226,-151.0,0.00013699,2]
[360829340,1747054238236,-233.05915937,0.00013699,2]
[360829341,1747054238245,-465.04,0.00013699,2]
[360829342,1747054238254,-200.0,0.00013699,2]
[360829343,1747054238263,-2196.92947927,0.00013699,2]
[360829344,1747054238272,-827.35192162,0.00013699,2]
[360829345,1747054238283,-1369.57755765,0.00013699,2]
[360829346,1747054238292,-2196.92947927,0.00013699,2]
[360829347,1747054238302,-2196.92947927,0.00013699,2]
[360829348,1747054238310,-2022.17877383,0.00013699,2]
[360829349,1747054238321,-174.75070544,0.00013699,2]
[360829350,1747054238330,-151.95476447,0.00013699,2]
[360829351,1747054238342,-2044.9747148,0.00013699,2]
[360829352,1747054238351,-2196.92947927,0.00013699,2]
[360829353,1747054238360,-2196.92947927,0.00013699,2]
[360829354,1747054238369,-2196.92947927,0.00013699,2]
[360829355,1747054238378,-2196.92947927,0.00013699,2]
[360829356,1747054238387,-2196.92947927,0.00013699,2]
[360829357,1747054238397,-2196.92947927,0.00013699,2]
[360829358,1747054238406,-2196.92947927,0.00013699,2]
[360829359,1747054238415,-2196.92947927,0.00013699,2]
[360829360,1747054238425,-2196.92947927,0.00013699,2]
[360829361,1747054238435,-2196.92947927,0.00013699,2]
[360829362,1747054238447,-2196.92947927,0.00013699,2]
[360829363,1747054238456,-2196.92947927,0.00013699,2]
[360829364,1747054238464,-2196.92947927,0.00013699,2]
[360829365,1747054238473,-2196.92947927,0.00013699,2]
[360829366,1747054238482,-2196.92947927,0.00013699,2]
[360829367,1747054238492,-2196.92947927,0.00013699,2]
[360829368,1747054238501,-2196.92947927,0.00013699,2]
[360829369,1747054238510,-2196.92947927,0.00013699,2]
[360829370,1747054238519,-2196.92947927,0.00013699,2]
[360829371,1747054238529,-2196.92947927,0.00013699,2]
[360829373,1747054238539,-2196.92947927,0.00013699,2]
[360829374,1747054238550,-2196.92947927,0.00013699,2]
[360829375,1747054238561,-2196.92947927,0.00013699,2]
[360829376,1747054238570,-2196.92947927,0.00013699,2]
[360829377,1747054238579,-2196.92947927,0.00013699,2]
[360829378,1747054238588,-2196.92947927,0.00013699,2]
[360829379,1747054238596,-2196.92947927,0.00013699,2]
[360829380,1747054238605,-2196.92947927,0.00013699,2]
[360829381,1747054238614,-2196.92947927,0.00013699,2]
[360829382,1747054238623,-2196.92947927,0.00013699,2]
[360829383,1747054238632,-2196.92947927,0.00013699,2]
[360829384,1747054238641,-2196.92947927,0.00013699,2]
[360829385,1747054238652,-2196.92947927,0.00013699,2]
[360829386,1747054238662,-2196.92947927,0.00013699,2]
[360829387,1747054238671,-2196.92947927,0.00013699,2]
[360829388,1747054238681,-2196.92947927,0.00013699,2]
[360829389,1747054238690,-2196.92947927,0.00013699,2]
[360829390,1747054238699,-2196.92947927,0.00013699,2]
[360829391,1747054238709,-2196.92947927,0.00013699,2]
[360829392,1747054238719,-2196.92947927,0.00013699,2]
[360829393,1747054238728,-2196.92947927,0.00013699,2]
[360829394,1747054238738,-2196.92947927,0.00013699,2]
[360829395,1747054238747,-2196.92947927,0.00013699,2]
[360829396,1747054238757,-2196.92947927,0.00013699,2]
[360829397,1747054238766,-2196.92947927,0.00013699,2]
[360829398,1747054238775,-2196.92947927,0.00013699,2]
[360829399,1747054238785,-2196.92947927,0.00013699,2]
[360829400,1747054238796,-2196.92947927,0.00013699,2]
[360829401,1747054238805,-2196.92947927,0.00013699,2]
[360829402,1747054238815,-2196.92947927,0.00013699,2]
[360829403,1747054238824,-2196.92947927,0.00013699,2]
[360829404,1747054238835,-2168.58200211,0.00013699,2]
[360829405,1747054238846,-2168.58200211,0.00013699,2]
[360829406,1747054238856,-2168.58200211,0.00013699,2]
[360829407,1747054238865,-2168.58200211,0.00013699,2]
[360829408,1747054238873,-2168.58200211,0.00013699,2]
[360829409,1747054238883,-2168.58200211,0.00013699,2]
[360829410,1747054238891,-2168.58200211,0.00013699,2]
[360829411,1747054238901,-2168.58200211,0.00013699,2]
[360829412,1747054238912,-2168.58200211,0.00013699,2]
[360829413,1747054238921,-2168.58200211,0.00013699,2]
[360829414,1747054238930,-2168.58200211,0.00013699,2]
[360829415,1747054238939,-2168.58200211,0.00013699,2]
[360829416,1747054238949,-2168.58200211,0.00013699,2]
[360829417,1747054238958,-2168.58200211,0.00013699,2]
[360829418,1747054238968,-2168.58200211,0.00013699,2]
[360829419,1747054238978,-2168.58200211,0.00013699,2]
[360829420,1747054238987,-2168.58200211,0.00013699,2]
[360829421,1747054238997,-2168.58200211,0.00013699,2]
[360829422,1747054239007,-2168.58200211,0.00013699,2]
[360829423,1747054239017,-2168.58200211,0.00013699,2]
[360829424,1747054239026,-2168.58200211,0.00013699,2]
[360829425,1747054239035,-2168.58200211,0.00013699,2]
[360829426,1747054239044,-2168.58200211,0.00013699,2]
[360829427,1747054239054,-2168.58200211,0.00013699,2]
[360829428,1747054239063,-2168.58200211,0.00013699,2]
[360829429,1747054239073,-2168.58200211,0.00013699,2]
[360829430,1747054239083,-2168.58200211,0.00013699,2]
[360829431,1747054239092,-2168.58200211,0.00013699,2]
[360829432,1747054239101,-2168.58200211,0.00013699,2]
[360829433,1747054239110,-2168.58200211,0.00013699,2]
[360829434,1747054239119,-2168.58200197,0.00013699,2]
[360829435,1747054239129,-430.49475489,0.00013719,2]
[360829436,1747054239139,-430.49475489,0.00013779,2]
[360829437,1747054239148,-784.88382843,0.0001378,2]
[360829438,1747054239157,-224.33421678,0.00013899,2]
[360829439,1747054239167,-228.55022976,0.00013899,2]
[360829440,1747054239177,-932.63,0.00013899,2]
[360829441,1747054239186,-224.33421675,0.00013926,2]
[360829442,1747054239196,-400.0,0.00013934,2]
[360829443,1747054239207,-224.33421675,0.00013952,2]
[360829444,1747054239217,-400.0,0.00013968,2]
[360829445,1747054239227,-400.0,0.00013968,2]
[360829446,1747054239237,-214.82,0.00013968,2]
[360829447,1747054239246,-400.0,0.00013968,2]
[360829448,1747054239256,-400.0,0.00013968,2]
[360829449,1747054239265,-400.0,0.00013968,2]
[360829450,1747054239275,-400.0,0.00013968,2]
[360829451,1747054239284,-400.0,0.00013968,2]
[360829452,1747054239294,-460.32,0.00013968,2]
[360829453,1747054239303,-856.89,0.00013968,2]
[360829454,1747054239312,-400.0,0.00013968,2]
[360829455,1747054239322,-400.0,0.00013968,2]
[360829456,1747054239331,-400.0,0.00013968,2]
[360829457,1747054239341,-400.0,0.00013968,2]
[360829458,1747054239350,-400.0,0.00013968,2]
[360829459,1747054239360,-400.0,0.00013968,2]
[360829460,1747054239369,-400.0,0.00013968,2]
[360829461,1747054239379,-400.0,0.00013968,2]
[360829462,1747054239390,-224.33421675,0.00013979,2]
[360829463,1747054239399,-1304.0,0.00013996,2]
[360829464,1747054239408,-798.0,0.00013996,2]
[360829465,1747054239417,-991.587,0.00013996,2]
[360829466,1747054239428,-836.0,0.00013996,2]
[360829467,1747054239438,-878.998,0.00013996,2]
[360829468,1747054239447,-154.0,0.00013996,2]
[360829469,1747054239456,-535.81098463,0.00013998,2]
[360829470,1747054239465,-327.29631515,0.00013998,2]
[360829471,1747054239475,-400.0,0.00013998,2]
[360829472,1747054239483,-470.02630813,0.00013998,2]
[360829473,1747054239492,-400.0,0.00013998,2]
[360829474,1747054239501,-511.92009329,0.00013998,2]
[360829475,1747054239510,-400.0,0.00013998,2]
[360829476,1747054239520,-400.0,0.00013998,2]
[360829477,1747054239530,-229.11541686,0.00013998,2]
[360829478,1747054239539,-400.0,0.00013998,2]
[360829479,1747054239549,-400.0,0.00013998,2]
[360829480,1747054239558,-400.0,0.00013998,2]
[360829481,1747054239570,-400.0,0.00013998,2]
[360829482,1747054239579,-400.0,0.00013998,2]
[360829483,1747054239590,-400.0,0.00013998,2]
[360829484,1747054239599,-400.0,0.00013998,2]
[360829485,1747054239609,-211.85863287,0.00013998,2]
[360829486,1747054239618,-400.0,0.00013998,2]
[360829487,1747054239628,-400.0,0.00013998,2]
[360829488,1747054239640,-400.0,0.00013998,2]
[360829489,1747054239649,-522.96180013,0.00013998,2]
[360829490,1747054239658,-400.0,0.00013998,2]
[360829491,1747054239667,-400.0,0.00013998,2]
[360829492,1747054239677,-400.0,0.00013998,2]
[360829493,1747054239686,-523.08910799,0.00013998,2]
[360829494,1747054239696,-400.0,0.00013998,2]
[360829495,1747054239705,-400.0,0.00013998,2]
[360829496,1747054239714,-400.0,0.00013998,2]
[360829497,1747054239724,-400.0,0.00013998,2]
[360829498,1747054239734,-400.0,0.00013998,2]
[360829499,1747054239744,-400.0,0.00013998,2]
[360829500,1747054239754,-400.0,0.00013998,2]
[360829501,1747054239763,-400.0,0.00013998,2]
[360829502,1747054239772,-400.0,0.00013998,2]
[360829503,1747054239782,-400.0,0.00013998,2]
[360829504,1747054239791,-400.0,0.00013998,2]
[360829505,1747054239802,-400.0,0.00013998,2]
[360829506,1747054239811,-502.18640043,0.00013998,2]
[360829507,1747054239820,-400.0,0.00013998,2]
[360829508,1747054239830,-400.0,0.00013998,2]
[360829509,1747054239839,-400.0,0.00013998,2]
[360829510,1747054239848,-400.0,0.00013998,2]
[360829511,1747054239858,-539.84792087,0.00013998,2]
[360829512,1747054239867,-400.0,0.00013998,2]
[360829513,1747054239877,-400.0,0.00013998,2]
[360829514,1747054239886,-400.0,0.00013998,2]
[360829515,1747054239896,-400.0,0.00013998,2]
[360829516,1747054239907,-400.0,0.00013998,2]
[360829517,1747054239920,-400.0,0.00013998,2]
[360829518,1747054239929,-400.0,0.00013998,2]
[360829519,1747054239938,-458.54027191,0.00013998,2]
[360829520,1747054239948,-400.0,0.00013998,2]
[360829521,1747054239957,-400.0,0.00013998,2]
[360829522,1747054239966,-529.70437735,0.00013998,2]
[360829523,1747054239976,-400.0,0.00013998,2]
[360829524,1747054239987,-400.0,0.00013998,2]
[360829525,1747054239997,-400.0,0.00013998,2]
[360829526,1747054240007,-157.11954103,0.00013998,2]
[360829527,1747054240016,-400.0,0.00013998,2]
[360829528,1747054240026,-415.11843666,0.00013998,2]
[360829529,1747054240036,-3361.63,0.00013998,2]
[360829530,1747054240046,-221.61342717,0.00013998,2]
[360829531,1747054240056,-400.0,0.00013998,2]
[360829532,1747054240066,-1829.08,0.00013998,2]
[360829533,1747054240076,-400.0,0.00013998,2]
[360829534,1747054240086,-400.0,0.00013998,2]
[360829535,1747054240095,-400.0,0.00013998,2]
[360829536,1747054240104,-400.0,0.00013998,2]
[360829537,1747054240114,-400.0,0.00013998,2]
[360829538,1747054240125,-400.0,0.00013998,2]
[360829540,1747054240144,-400.0,0.00013998,2]
[360829541,1747054240154,-308.95610591,0.00013998,2]
[360829542,1747054240164,-424.11,0.00013998,2]
[360829543,1747054240173,-400.0,0.00013998,2]
[360829544,1747054240182,-400.0,0.00013998,2]
[360829545,1747054240192,-400.0,0.00013998,2]
[360829546,1747054240201,-400.0,0.00013998,2]
[360829547,1747054240211,-350.53947966,0.00013998,2]
[360829548,1747054240220,-400.0,0.00013998,2]
[360829549,1747054240229,-400.0,0.00013998,2]
[360829550,1747054240240,-400.0,0.00013998,2]
[360829551,1747054240249,-2316.94,0.00013998,2]
[360829552,1747054240259,-400.0,0.00013998,2]
[360829553,1747054240267,-400.0,0.00013998,2]
[360829554,1747054240276,-2452.53,0.00013998,2]
[360829555,1747054240286,-400.0,0.00013998,2]
[360829556,1747054240295,-400.0,0.00013998,2]
[360829557,1747054240304,-400.0,0.00013998,2]
[360829558,1747054240314,-400.0,0.00013998,2]
[360829559,1747054240323,-400.0,0.00013998,2]
[360829560,1747054240333,-400.0,0.00013998,2]
[360829561,1747054240342,-400.0,0.00013998,2]
[360829562,1747054240352,-423.83,0.00013998,2]
[360829563,1747054240362,-397.89285116,0.00013998,2]
[360829564,1747054240371,-400.0,0.00013998,2]
[360829565,1747054240380,-400.0,0.00013998,2]
[360829566,1747054240390,-1531.25,0.00013998,2]
[360829567,1747054240601,-705.29,0.00013998,2]
[360829568,1747054240611,-382.54,0.00013998,2]
[360829569,1747054240620,-139543.01369809,0.00013998,2]
[360829570,1747054240636,-8889.68630191,0.00013998,2]
[360829571,1747054240645,-516.7373127,0.00013999,2]
[360829572,1747054240654,-400.0,0.00013999,2]
[360829573,1747054240664,-400.0,0.00013999,2]
[360829574,1747054240673,-400.0,0.00013999,2]
[360829575,1747054240682,-442.92331176,0.00013999,2]
[360829576,1747054240692,-530.54186933,0.00013999,2]
[360829577,1747054240701,-520.98263934,0.00013999,2]
[360829578,1747054240710,-500.0,0.00013999,2]
[360829579,1747054240719,-455.08908045,0.00013999,2]
[360829581,1747054240729,-496.05532324,0.00013999,2]
[360829582,1747054240738,-446.98,0.00013999,2]
[360829583,1747054240747,-400.0,0.00013999,2]
[360829584,1747054240756,-225.37001647,0.00013999,2]
[360829585,1747054240765,-400.0,0.00013999,2]
[360829586,1747054240774,-500.08,0.00013999,2]
[360829587,1747054240783,-400.0,0.00013999,2]
[360829588,1747054240793,-644.67,0.00013999,2]
[360829589,1747054240802,-400.0,0.00013999,2]
[360829591,1747054240811,-400.0,0.00013999,2]
[360829593,1747054240820,-435.44022894,0.00013999,2]
[360829594,1747054240831,-400.0,0.00013999,2]
[360829596,1747054240841,-400.0,0.00013999,2]
[360829597,1747054240851,-389.61232121,0.00013999,2]
[360829598,1747054240869,-10.38767879,0.00013999,2]
[360829599,1747054240879,-246.25868311,0.00013999,2]
[360829600,1747054240892,-153.74131689,0.00013999,2]
[360829601,1747054240902,-400.0,0.00013999,2]
[360829602,1747054240913,-387.83737145,0.00013999,2]
[360829603,1747054240924,-12.16262855,0.00013999,2]
[360829604,1747054240934,-400.0,0.00013999,2]
[360829605,1747054240947,-400.0,0.00013999,2]
[360829606,1747054240957,-400.0,0.00013999,2]
[360829607,1747054240967,-400.0,0.00013999,2]
[360829608,1747054240976,-400.0,0.00013999,2]
[360829609,1747054240987,-455.29809624,0.00013999,2]
[360829610,1747054240996,-157.75313895,0.00013999,2]
[360829611,1747054241005,-417.97,0.00013999,2]
[360829612,1747054241015,-400.0,0.00013999,2]
[360829613,1747054241024,-400.0,0.00013999,2]
[360829614,1747054241033,-400.0,0.00013999,2]
[360829615,1747054241042,-400.0,0.00013999,2]
[360829616,1747054241051,-400.0,0.00013999,2]
[360829617,1747054241060,-129.93891626,0.00013999,2]
[360829618,1747054241102,-901.47596624,0.00013996,2]
[360829619,1747054241114,-288.33490037,0.00013996,2]
[360829620,1747054241130,-738.92346485,0.00013996,2]
[360829621,1747054241143,-2100.26566854,0.00013996,2]
[360829622,1747054241153,-270.06108374,0.00013999,2]
[360829623,1747054241163,-400.0,0.00013999,2]
[360829624,1747054241173,-400.0,0.00013999,2]
[360829625,1747054241182,-400.0,0.00013999,2]
[360829626,1747054241191,-400.0,0.00013999,2]
[360829627,1747054241200,-400.0,0.00013999,2]
[360829628,1747054241210,-400.0,0.00013999,2]
[360829629,1747054241219,-400.0,0.00013999,2]
[360829630,1747054241229,-281.39121095,0.00013999,2]
[360829631,1747054241238,-400.0,0.00013999,2]
[360829632,1747054241247,-407.31003255,0.00013999,2]
[360829633,1747054241257,-408.17143434,0.00013999,2]
[360829634,1747054241266,-400.0,0.00013999,2]
[360829635,1747054241276,-400.0,0.00013999,2]
[360829636,1747054241285,-400.0,0.00013999,2]
[360829637,1747054241295,-400.0,0.00013999,2]
[360829638,1747054241304,-400.0,0.00013999,2]
[360829639,1747054241314,-400.0,0.00013999,2]
[360829640,1747054241323,-400.0,0.00013999,2]
[360829641,1747054241334,-478.52538859,0.00013999,2]
[360829642,1747054241350,-805.36,0.00013999,2]
[360829643,1747054241360,-400.0,0.00013999,2]
[360829644,1747054241369,-461.45369029,0.00013999,2]
[360829645,1747054241378,-404.95,0.00013999,2]
[360829646,1747054241388,-400.0,0.00013999,2]
[360829647,1747054241397,-400.0,0.00013999,2]
[360829648,1747054241407,-400.0,0.00013999,2]
[360829649,1747054241416,-400.0,0.00013999,2]
[360829650,1747054241426,-400.0,0.00013999,2]
[360829651,1747054241435,-400.0,0.00013999,2]
[360829652,1747054241445,-400.0,0.00013999,2]
[360829653,1747054241455,-400.0,0.00013999,2]
[360829654,1747054241464,-400.0,0.00013999,2]
[360829655,1747054241473,-397.06777246,0.00013999,2]
[360829656,1747054241483,-400.0,0.00013999,2]
[360829657,1747054241493,-400.0,0.00013999,2]
[360829658,1747054241502,-400.0,0.00013999,2]
[360829659,1747054241512,-400.0,0.00013999,2]
[360829660,1747054241522,-512.23448423,0.00013999,2]
[360829661,1747054241532,-400.0,0.00013999,2]
[360829662,1747054241541,-400.0,0.00013999,2]
[360829663,1747054241550,-2345.27,0.00013999,2]
[360829664,1747054241559,-400.0,0.00013999,2]
[360829665,1747054241569,-400.0,0.00013999,2]
[360829666,1747054241579,-400.0,0.00013999,2]
[360829667,1747054241587,-400.0,0.00013999,2]
[360829668,1747054241596,-316.2885326,0.00013999,2]
[360829669,1747054241605,-400.0,0.00013999,2]
[360829670,1747054241614,-400.0,0.00013999,2]
[360829671,1747054241624,-400.0,0.00013999,2]
[360829672,1747054241636,-450.0,0.00013999,2]
[360829673,1747054241655,-400.0,0.00013999,2]
[360829674,1747054241671,-1825.24819336,0.00013999,2]
[360829675,1747054241684,-2421.83180664,0.00013999,2]
[360829676,1747054241693,-400.0,0.00013999,2]
[360829677,1747054241702,-530.66852641,0.00013999,2]
[360829678,1747054241711,-400.0,0.00013999,2]
[360829679,1747054241721,-400.0,0.00013999,2]
[360829680,1747054241730,-400.0,0.00013999,2]
[360829681,1747054241739,-402.88444543,0.00013999,2]
[360829682,1747054241749,-400.0,0.00013999,2]
[360829683,1747054241759,-516.55006559,0.00013999,2]
[360829684,1747054241768,-400.0,0.00013999,2]
[360829685,1747054241778,-430.13,0.00013999,2]
[360829686,1747054241787,-400.0,0.00013999,2]
[360829687,1747054241796,-400.0,0.00013999,2]
[360829688,1747054241805,-414.64,0.00013999,2]
[360829689,1747054241814,-400.0,0.00013999,2]
[360829690,1747054241823,-400.0,0.00013999,2]
[360829691,1747054241833,-400.0,0.00013999,2]
[360829692,1747054241842,-530.73343559,0.00013999,2]
[360829693,1747054241852,-1353.54,0.00013999,2]
[360829694,1747054241863,-400.0,0.00013999,2]
[360829695,1747054241874,-400.0,0.00013999,2]
[360829696,1747054241884,-400.0,0.00013999,2]
[360829697,1747054241894,-400.0,0.00013999,2]
[360829698,1747054241905,-400.0,0.00013999,2]
[360829699,1747054241914,-400.0,0.00013999,2]
[360829700,1747054241923,-1509.28,0.00013999,2]
[360829701,1747054241933,-314.51832552,0.00013999,2]
[360829702,1747054241943,-400.0,0.00013999,2]
[360829703,1747054241954,-400.0,0.00013999,2]
[360829704,1747054241964,-400.0,0.00013999,2]
[360829705,1747054241976,-400.0,0.00013999,2]
[360829706,1747054241986,-400.0,0.00013999,2]
[360829707,1747054241996,-400.0,0.00013999,2]
[360829708,1747054242005,-400.0,0.00013999,2]
[360829709,1747054242015,-528.04,0.00013999,2]
[360829710,1747054242024,-400.0,0.00013999,2]
[360829711,1747054242033,-400.0,0.00013999,2]
[360829712,1747054242043,-248.10463615,0.00013999,2]
[360829713,1747054242052,-224.33421675,0.00014006,2]
[360829714,1747054242062,-224.33421675,0.00014032,2]
[360829715,1747054242072,-224.33421675,0.00014059,2]
[360829716,1747054242082,-224.33421675,0.00014086,2]
[360829717,1747054242091,-1600.0,0.0001409,2]
[360829718,1747054242100,-1861.85185,0.0001409,2]
[360829719,1747054242110,-224.33421675,0.00014112,2]
[360829720,1747054242119,-932.63,0.00014128,2]
[360829721,1747054242128,-400.0,0.00014128,2]
[360829722,1747054242139,-400.0,0.00014128,2]
[360829723,1747054242148,-300.0,0.00014128,2]
[360829724,1747054242158,-400.0,0.00014129,2]
[360829725,1747054242167,-400.0,0.00014129,2]
[360829726,1747054242177,-400.0,0.00014129,2]
[360829727,1747054242186,-400.0,0.00014129,2]
[360829728,1747054242195,-510.62100204,0.00014129,2]
[360829729,1747054242205,-507.90757176,0.00014129,2]
[360829730,1747054242215,-400.0,0.00014129,2]
[360829731,1747054242224,-400.0,0.00014129,2]
[360829732,1747054242234,-400.0,0.00014129,2]
[360829733,1747054242244,-414.10878866,0.00014129,2]
[360829734,1747054242253,-400.0,0.00014129,2]
[360829735,1747054242262,-400.0,0.00014129,2]
[360829736,1747054242272,-400.0,0.00014129,2]
[360829737,1747054242281,-400.0,0.00014129,2]
[360829738,1747054242290,-400.0,0.00014129,2]
[360829739,1747054242299,-400.0,0.00014129,2]
[360829740,1747054242308,-400.0,0.00014129,2]
[360829741,1747054242318,-400.0,0.00014129,2]
[360829742,1747054242327,-400.0,0.00014129,2]
[360829743,1747054242336,-400.0,0.00014129,2]
[360829744,1747054242345,-400.0,0.00014129,2]
[360829745,1747054242354,-536.87,0.00014129,2]
[360829746,1747054242364,-400.0,0.00014129,2]
[360829747,1747054242373,-400.0,0.00014129,2]
[360829748,1747054242382,-400.0,0.00014129,2]
[360829749,1747054242395,-400.0,0.00014129,2]
[360829750,1747054242404,-400.0,0.00014129,2]
[360829751,1747054242413,-403.83530028,0.00014129,2]
[360829752,1747054242423,-542.5,0.00014129,2]
[360829753,1747054242432,-400.0,0.00014129,2]
[360829754,1747054242442,-400.0,0.00014129,2]
[360829755,1747054242451,-400.0,0.00014129,2]
[360829756,1747054242459,-193.22098347,0.00014129,2]
[360829757,1747054242469,-400.0,0.00014129,2]
[360829758,1747054242478,-408.38531962,0.00014129,2]
[360829759,1747054242487,-412.30827449,0.00014129,2]
[360829760,1747054242496,-400.0,0.00014129,2]
[360829761,1747054242505,-400.0,0.00014129,2]
[360829762,1747054242514,-400.0,0.00014129,2]
[360829763,1747054242523,-400.0,0.00014129,2]
[360829764,1747054242532,-400.0,0.00014129,2]
[360829765,1747054242541,-400.0,0.00014129,2]
[360829766,1747054242550,-400.0,0.00014129,2]
[360829767,1747054242560,-400.0,0.00014129,2]
[360829768,1747054242568,-400.0,0.00014129,2]
[360829769,1747054242577,-3952.01,0.00014129,2]
[360829770,1747054242586,-400.0,0.00014129,2]
[360829771,1747054242595,-400.0,0.00014129,2]
[360829772,1747054242604,-400.0,0.00014129,2]
[360829773,1747054242613,-400.0,0.00014129,2]
[360829774,1747054242622,-400.0,0.00014129,2]
[360829775,1747054242631,-400.0,0.00014129,2]
[360829776,1747054242640,-400.0,0.00014129,2]
[360829777,1747054242650,-400.0,0.00014129,2]
[360829778,1747054242658,-400.0,0.00014129,2]
[360829779,1747054242668,-1363.72,0.00014129,2]
[360829780,1747054242676,-1547.21,0.00014129,2]
[360829781,1747054242686,-400.0,0.00014129,2]
[360829782,1747054242694,-400.0,0.00014129,2]
[360829783,1747054242704,-168.31103297,0.00014129,2]
[360829784,1747054242713,-400.0,0.00014129,2]
[360829785,1747054242722,-400.0,0.00014129,2]
[360829786,1747054242730,-457.08,0.00014129,2]
[360829787,1747054242739,-400.0,0.00014129,2]
[360829788,1747054242748,-400.0,0.00014129,2]
[360829789,1747054242757,-400.0,0.00014129,2]
[360829790,1747054242766,-6734.88,0.00014129,2]
[360829791,1747054242775,-400.0,0.00014129,2]
[360829792,1747054242784,-402.05011874,0.00014129,2]
[360829793,1747054242793,-151.0,0.00014129,2]
[360829794,1747054242802,-151.0,0.00014129,2]
[360829795,1747054242812,-16306.24,0.00014129,2]
[360829796,1747054242822,-447.63,0.00014129,2]
[360829797,1747054242831,-980.79,0.00014129,2]
[360829798,1747054242839,-4150.03,0.00014129,2]
[360829799,1747054242849,-151.0,0.00014129,2]
[360829800,1747054242858,-1305.04023961,0.00014129,2]
[360829801,1747054242996,-2145.0,0.00014129,2]
[360829802,1747054243006,-4788.55,0.00014129,2]
[360829804,1747054243023,-9699.58758107,0.00014129,2]
[360829805,1747054243117,-315.32000001,0.00014129,2]
[360829807,1747054243703,-430.49475489,0.00013839,2]
[360829808,1747054243714,-38.47185691,0.00013996,2]
[360829810,1747054243726,-1107.52814309,0.00013996,2]
[360829811,1747054243735,-67914.30217931,0.00014129,2]
[360829812,1747054243744,-400.0,0.00014129,2]
[360829813,1747054243754,-400.0,0.00014129,2]
[360829814,1747054243763,-306.71,0.00014129,2]
[360829815,1747054243772,-400.0,0.00014129,2]
[360829816,1747054243781,-32798.24,0.00014129,2]
[360829817,1747054243790,-400.0,0.00014129,2]
[360829818,1747054243799,-442.28,0.00014129,2]
[360829819,1747054243808,-400.0,0.00014129,2]
[360829820,1747054243817,-400.0,0.00014129,2]
[360829821,1747054243826,-400.0,0.00014129,2]
[360829822,1747054243835,-400.0,0.00014129,2]
[360829823,1747054243844,-400.0,0.00014129,2]
[360829824,1747054243853,-400.0,0.00014129,2]
[360829825,1747054243862,-153.385844,0.00014129,2]
[360829826,1747054243871,-331.99202587,0.00014129,2]
[360829827,1747054243882,-68.00797413,0.00014129,2]
[360829828,1747054243892,-325.21059185,0.00014129,2]